[Event "*** Titled Tuesday Blitz"]
[Site "Chess.com"]
[Date "2020.10.27"]
[Round "2"]
[White "scarabee43"]
[Black "Zkid"]
[Result "0-1"]
[WhiteElo "2535"]
[BlackElo "2810"]
[TimeControl "180+1"]
[EndTime "10:19:12 PDT"]
[Termination "Zkid won by resignation"]

1. Nf3 {[%clk 0:03:00.9]} 1... d5 {[%clk 0:02:59.7]} 2. e3 {[%clk 0:03:00.9]}
2... Bg4 {[%clk 0:02:55.2]} 3. c4 {[%clk 0:02:56.1]} 3... c6 {[%clk 0:02:52.4]}
4. cxd5 {[%clk 0:02:46.7]} 4... cxd5 {[%clk 0:02:43.6]} 5. Qb3 {[%clk
0:02:47.1]} 5... Qc7 {[%clk 0:02:41.8]} 6. Nc3 {[%clk 0:02:42.7]} 6... Bxf3
{[%clk 0:02:40.8]} 7. gxf3 {[%clk 0:02:36.5]} 7... e6 {[%clk 0:02:40.8]} 8. d4
{[%clk 0:02:35.2]} 8... Nc6 {[%clk 0:02:39.8]} 9. f4 {[%clk 0:02:33]} 9... Bb4
{[%clk 0:02:33.6]} 10. Bd2 {[%clk 0:02:32.2]} 10... Nf6 {[%clk 0:02:31.9]} 11.
Rc1 {[%clk 0:02:19]} 11... Bxc3 {[%clk 0:02:28.8]} 12. Bxc3 {[%clk 0:02:18.5]}
12... O-O {[%clk 0:02:16.4]} 13. Bd3 {[%clk 0:02:15.1]} 13... Ne4 {[%clk
0:02:10.1]} 14. O-O {[%clk 0:02:08.1]} 14... f5 {[%clk 0:02:07.8]} 15. f3 {[%clk
0:02:05.5]} 15... Nxc3 {[%clk 0:02:05.6]} 16. Rxc3 {[%clk 0:02:04.3]} 16... Qe7
{[%clk 0:01:52.7]} 17. Kh1 {[%clk 0:01:59.9]} 17... Kh8 {[%clk 0:01:51.6]} 18.
Rc2 {[%clk 0:01:56]} 18... Rg8 {[%clk 0:01:44.1]} 19. Rg2 {[%clk 0:01:54.3]}
19... Rac8 {[%clk 0:01:42.4]} 20. a3 {[%clk 0:01:51.1]} 20... Na5 {[%clk
0:01:40.2]} 21. Qa4 {[%clk 0:01:47.2]} 21... b6 {[%clk 0:01:38.1]} 22. Rc2
{[%clk 0:01:43]} 22... Rxc2 {[%clk 0:01:35.1]} 23. Qxc2 {[%clk 0:01:42]} 23...
g5 {[%clk 0:01:35.4]} 24. fxg5 {[%clk 0:01:37.3]} 24... Qxg5 {[%clk 0:01:36.3]}
25. Qf2 {[%clk 0:01:36.8]} 25... f4 {[%clk 0:01:31.1]} 26. e4 {[%clk 0:01:32.6]}
26... Nc6 {[%clk 0:01:29.2]} 27. exd5 {[%clk 0:01:20.1]} 27... exd5 {[%clk
0:01:30.1]} 28. Rc1 {[%clk 0:01:20.2]} 28... Ne7 {[%clk 0:01:20.4]} 29. Bb1
{[%clk 0:01:07.6]} 29... Ng6 {[%clk 0:00:55.1]} 30. Rg1 {[%clk 0:01:04.1]} 30...
Qf6 {[%clk 0:00:49.7]} 31. Bxg6 {[%clk 0:01:02.8]} 31... Rxg6 {[%clk 0:00:49.4]}
32. Rxg6 {[%clk 0:01:00.2]} 32... Qxg6 {[%clk 0:00:50.3]} 33. Qd2 {[%clk
0:00:59.1]} 33... Qb1+ {[%clk 0:00:44.4]} 34. Kg2 {[%clk 0:00:59]} 34... Qf5
{[%clk 0:00:44.9]} 35. Qc3 {[%clk 0:00:53.9]} 35... Qg5+ {[%clk 0:00:44.2]} 36.
Kf2 {[%clk 0:00:53.8]} 36... Qh4+ {[%clk 0:00:43.3]} 37. Kg2 {[%clk 0:00:54.2]}
37... Qg5+ {[%clk 0:00:26.7]} 38. Kf1 {[%clk 0:00:49.8]} 38... Qf5 {[%clk
0:00:25.2]} 39. Kg2 {[%clk 0:00:42.3]} 39... Kg7 {[%clk 0:00:23.8]} 40. Qc7+
{[%clk 0:00:41]} 40... Qf7 {[%clk 0:00:24.2]} 41. Qe5+ {[%clk 0:00:40.6]} 41...
Kg6 {[%clk 0:00:24.8]} 42. h4 {[%clk 0:00:38.7]} 42... Qf5 {[%clk 0:00:23.4]}
43. Qe8+ {[%clk 0:00:37.3]} 43... Kh6 {[%clk 0:00:22.9]} 44. Kh2 {[%clk
0:00:21.7]} 44... Qf6 {[%clk 0:00:20.6]} 45. Kh3 {[%clk 0:00:20.3]} 45... Qxd4
{[%clk 0:00:18.9]} 46. Qe6+ {[%clk 0:00:19.3]} 46... Kg7 {[%clk 0:00:17.8]} 47.
Qe7+ {[%clk 0:00:19.5]} 47... Kg6 {[%clk 0:00:18.2]} 48. Qe8+ {[%clk 0:00:19.5]}
48... Kf5 {[%clk 0:00:17.9]} 49. Qf7+ {[%clk 0:00:19.5]} 49... Qf6 {[%clk
0:00:17.9]} 50. Qxd5+ {[%clk 0:00:19.2]} 50... Kg6 {[%clk 0:00:17.3]} 51. Qe4+
{[%clk 0:00:19.2]} 51... Qf5+ {[%clk 0:00:17.8]} 52. Kg2 {[%clk 0:00:16.9]}
52... Qxe4 {[%clk 0:00:15.8]} 53. fxe4 {[%clk 0:00:17.4]} 53... Kf6 {[%clk
0:00:16]} 54. Kf2 {[%clk 0:00:16.2]} 54... Ke5 {[%clk 0:00:14.2]} 55. Kf3 {[%clk
0:00:16.1]} 55... b5 {[%clk 0:00:14.5]} 56. h5 {[%clk 0:00:13]} 56... a5 {[%clk
0:00:13.2]} 57. b3 {[%clk 0:00:11.3]} 57... h6 {[%clk 0:00:13]} 58. a4 {[%clk
0:00:09.9]} 58... b4 {[%clk 0:00:13.3]} 59. Kf2 {[%clk 0:00:10.4]} 59... Kxe4
{[%clk 0:00:14.1]} 60. Ke2 {[%clk 0:00:11.1]} 60... f3+ {[%clk 0:00:14.7]} 61.
Kf2 {[%clk 0:00:11.8]} 61... Kf4 {[%clk 0:00:15.1]} 62. Kf1 {[%clk 0:00:12.4]}
62... Kg4 {[%clk 0:00:15.2]} 63. Kf2 {[%clk 0:00:12.8]} 63... Kf4 {[%clk
0:00:14.4]} 64. Kf1 {[%clk 0:00:12.6]} 64... Kg3 {[%clk 0:00:14.9]} 65. Kg1
{[%clk 0:00:13.2]} 65... Kg4 {[%clk 0:00:15.2]} 66. Kf2 {[%clk 0:00:13.4]} 66...
Kxh5 {[%clk 0:00:16.1]} 67. Kxf3 {[%clk 0:00:13.1]} 67... Kg5 {[%clk 0:00:16.7]}
68. Kg3 {[%clk 0:00:13.6]} 68... h5 {[%clk 0:00:17.6]} 69. Kf3 {[%clk
0:00:14.1]} 69... Kf5 {[%clk 0:00:17.7]} 70. Ke3 {[%clk 0:00:13.8]} 70... Ke5
{[%clk 0:00:17.9]} 71. Kd3 {[%clk 0:00:10.8]} 71... Kd5 {[%clk 0:00:18.2]} 72.
Ke3 {[%clk 0:00:10.8]} 72... h4 {[%clk 0:00:19.1]} 73. Kf3 {[%clk 0:00:10.1]}
73... Kd4 {[%clk 0:00:20]} 74. Kg4 {[%clk 0:00:10.8]} 74... Kc3 {[%clk
0:00:20.8]} 75. Kxh4 {[%clk 0:00:11.6]} 75... Kxb3 {[%clk 0:00:21.7]} 76. Kg3
{[%clk 0:00:12.4]} 76... Kxa4 {[%clk 0:00:22.6]} 77. Kf3 {[%clk 0:00:13.1]}
77... b3 {[%clk 0:00:23.5]} 78. Ke3 {[%clk 0:00:13.8]} 78... b2 {[%clk
0:00:24.4]} 79. Kd2 {[%clk 0:00:14.4]} 79... b1=Q {[%clk 0:00:25.3]} 80. Kc3
{[%clk 0:00:15.1]} 80... Kb5 {[%clk 0:00:24.9]} 81. Kd4 {[%clk 0:00:14.9]} 81...
a4 {[%clk 0:00:25.8]} 82. Kc3 {[%clk 0:00:14.7]} 82... a3 {[%clk 0:00:26.7]} 83.
Kd4 {[%clk 0:00:15]} 83... a2 {[%clk 0:00:27.6]} 0-1

[Event "*** Titled Tuesday Blitz"]
[Site "Chess.com"]
[Date "2020.10.27"]
[Round "2"]
[White "Natalya_Buksa"]
[Black "MikaelyanArman"]
[Result "1-0"]
[WhiteElo "2555"]
[BlackElo "2807"]
[TimeControl "180+1"]
[EndTime "10:19:13 PDT"]
[Termination "Natalya_Buksa won by resignation"]

1. d4 {[%clk 0:03:00.9]} 1... d5 {[%clk 0:02:59.4]} 2. Nc3 {[%clk 0:03:01.4]}
2... Nf6 {[%clk 0:02:58.4]} 3. Bf4 {[%clk 0:03:01.9]} 3... a6 {[%clk 0:02:56.6]}
4. e3 {[%clk 0:03:01.9]} 4... e6 {[%clk 0:02:56.6]} 5. Bd3 {[%clk 0:02:58.9]}
5... c5 {[%clk 0:02:55.8]} 6. Nf3 {[%clk 0:02:53.8]} 6... Bd6 {[%clk 0:02:51.1]}
7. dxc5 {[%clk 0:02:38.1]} 7... Bxc5 {[%clk 0:02:48.1]} 8. O-O {[%clk
0:02:37.7]} 8... Nc6 {[%clk 0:02:47.3]} 9. e4 {[%clk 0:02:37.2]} 9... dxe4
{[%clk 0:02:41.5]} 10. Nxe4 {[%clk 0:02:37]} 10... Nxe4 {[%clk 0:02:41.5]} 11.
Bxe4 {[%clk 0:02:37.3]} 11... Qxd1 {[%clk 0:02:41.8]} 12. Raxd1 {[%clk
0:02:36.4]} 12... Bd7 {[%clk 0:02:41.7]} 13. a3 {[%clk 0:02:17.7]} 13... f6
{[%clk 0:02:11.7]} 14. Bd6 {[%clk 0:02:05.6]} 14... Bxd6 {[%clk 0:02:07.3]} 15.
Rxd6 {[%clk 0:02:06.5]} 15... Ke7 {[%clk 0:02:06.2]} 16. Rfd1 {[%clk 0:01:53.6]}
16... Rad8 {[%clk 0:02:06.2]} 17. c3 {[%clk 0:01:41.3]} 17... Bc8 {[%clk
0:01:57.2]} 18. Rxd8 {[%clk 0:01:25.8]} 18... Nxd8 {[%clk 0:01:58.1]} 19. Kf1
{[%clk 0:01:24.4]} 19... Nf7 {[%clk 0:01:52.5]} 20. Ke2 {[%clk 0:01:23.5]} 20...
Nd6 {[%clk 0:01:50.2]} 21. Bd3 {[%clk 0:01:21]} 21... Bd7 {[%clk 0:01:48.9]} 22.
Nd2 {[%clk 0:01:11.7]} 22... Bc6 {[%clk 0:01:49]} 23. f3 {[%clk 0:01:11.4]}
23... h5 {[%clk 0:01:48.8]} 24. Nc4 {[%clk 0:01:05.8]} 24... Nxc4 {[%clk
0:01:42.5]} 25. Bxc4 {[%clk 0:01:06.7]} 25... h4 {[%clk 0:01:43]} 26. Kf2 {[%clk
0:01:05.5]} 26... Rh5 {[%clk 0:01:37]} 27. Re1 {[%clk 0:01:01.6]} 27... Bd5
{[%clk 0:01:31.8]} 28. Bxd5 {[%clk 0:00:58]} 28... Rxd5 {[%clk 0:01:32.7]} 29.
Re2 {[%clk 0:00:58.5]} 29... e5 {[%clk 0:01:30.8]} 30. g3 {[%clk 0:00:58]} 30...
hxg3+ {[%clk 0:01:21]} 31. hxg3 {[%clk 0:00:57.8]} 31... Kd6 {[%clk 0:01:21.9]}
32. Ke3 {[%clk 0:00:57.5]} 32... Kc5 {[%clk 0:01:19.6]} 33. Rh2 {[%clk
0:00:56.8]} 33... Kc4 {[%clk 0:01:17.3]} 34. Rh4+ {[%clk 0:00:57]} 34... Kc5
{[%clk 0:01:12.5]} 35. b4+ {[%clk 0:00:50.5]} 35... Kc6 {[%clk 0:01:12.3]} 36.
a4 {[%clk 0:00:46.7]} 36... Rd7 {[%clk 0:01:07]} 37. f4 {[%clk 0:00:40]} 37...
exf4+ {[%clk 0:01:03.7]} 38. Rxf4 {[%clk 0:00:39.6]} 38... Re7+ {[%clk
0:00:59.9]} 39. Kd3 {[%clk 0:00:38.7]} 39... Re1 {[%clk 0:00:56.3]} 40. c4
{[%clk 0:00:33.3]} 40... Rg1 {[%clk 0:00:55.7]} 41. Rf3 {[%clk 0:00:30.2]} 41...
Kd6 {[%clk 0:00:56.1]} 42. a5 {[%clk 0:00:22.4]} 42... Ke5 {[%clk 0:00:48.3]}
43. Re3+ {[%clk 0:00:22.1]} 43... Kd6 {[%clk 0:00:45.7]} 44. Kd4 {[%clk
0:00:21.6]} 44... Rd1+ {[%clk 0:00:45.4]} 45. Kc3 {[%clk 0:00:21]} 45... Rg1
{[%clk 0:00:42.3]} 46. b5 {[%clk 0:00:20.3]} 46... Kc5 {[%clk 0:00:37.5]} 47. b6
{[%clk 0:00:13.9]} 47... Rc1+ {[%clk 0:00:36.5]} 48. Kb3 {[%clk 0:00:14.2]}
48... Rb1+ {[%clk 0:00:31.8]} 49. Kc3 {[%clk 0:00:14]} 49... Rg1 {[%clk
0:00:32.4]} 50. Kb3 {[%clk 0:00:12.7]} 50... g5 {[%clk 0:00:29.8]} 51. Rf3
{[%clk 0:00:11.8]} 51... Rg2 {[%clk 0:00:23]} 52. Rf5+ {[%clk 0:00:11.4]} 52...
Kd4 {[%clk 0:00:23.5]} 53. Rxf6 {[%clk 0:00:11.9]} 53... Rxg3+ {[%clk
0:00:23.9]} 54. Kb4 {[%clk 0:00:12.5]} 54... Rg1 {[%clk 0:00:24.4]} 55. Rd6+
{[%clk 0:00:13]} 55... Ke3 {[%clk 0:00:18.5]} 56. Rd7 {[%clk 0:00:13.4]} 56...
g4 {[%clk 0:00:17.3]} 57. Rxb7 {[%clk 0:00:13.8]} 57... g3 {[%clk 0:00:17.9]}
58. Rg7 {[%clk 0:00:13.4]} 58... Kd4 {[%clk 0:00:15.7]} 59. Rg4+ {[%clk
0:00:12.7]} 59... Ke5 {[%clk 0:00:15.9]} 60. Kc5 {[%clk 0:00:13]} 60... Kf5
{[%clk 0:00:16.3]} 61. Rg8 {[%clk 0:00:12.9]} 61... g2 {[%clk 0:00:14.9]} 62.
Kc6 {[%clk 0:00:13.2]} 62... Ke4 {[%clk 0:00:09.4]} 63. b7 {[%clk 0:00:10.6]}
63... Rb1 {[%clk 0:00:08.5]} 64. Rxg2 {[%clk 0:00:10]} 64... Kd4 {[%clk
0:00:09.4]} 65. Rg8 {[%clk 0:00:09.8]} 65... Kxc4 {[%clk 0:00:09.5]} 66. b8=Q
{[%clk 0:00:10.1]} 1-0

[Event "*** Titled Tuesday Blitz"]
[Site "Chess.com"]
[Date "2020.10.27"]
[Round "2"]
[White "penguingm1"]
[Black "talman67"]
[Result "1-0"]
[WhiteElo "2810"]
[BlackElo "2535"]
[TimeControl "180+1"]
[EndTime "10:19:14 PDT"]
[Termination "penguingm1 won on time"]

1. d4 {[%clk 0:03:00.9]} 1... Nf6 {[%clk 0:02:59.1]} 2. c4 {[%clk 0:02:57.4]}
2... e6 {[%clk 0:02:59.4]} 3. Nc3 {[%clk 0:02:56.3]} 3... Bb4 {[%clk 0:02:59.8]}
4. Qc2 {[%clk 0:02:55.3]} 4... O-O {[%clk 0:02:59.1]} 5. Nf3 {[%clk 0:02:54.4]}
5... c5 {[%clk 0:02:52.6]} 6. dxc5 {[%clk 0:02:54.3]} 6... Na6 {[%clk
0:02:52.1]} 7. g3 {[%clk 0:02:54.5]} 7... Nxc5 {[%clk 0:02:51.6]} 8. Bg2 {[%clk
0:02:54.8]} 8... Nce4 {[%clk 0:02:49.9]} 9. O-O {[%clk 0:02:55.1]} 9... Nxc3
{[%clk 0:02:48.9]} 10. bxc3 {[%clk 0:02:56]} 10... Be7 {[%clk 0:02:48.7]} 11. e4
{[%clk 0:02:56.7]} 11... d6 {[%clk 0:02:48.4]} 12. e5 {[%clk 0:02:56.8]} 12...
dxe5 {[%clk 0:02:49.3]} 13. Nxe5 {[%clk 0:02:57.7]} 13... Qc7 {[%clk 0:02:50]}
14. Qe2 {[%clk 0:02:56.2]} 14... Nd7 {[%clk 0:02:34.2]} 15. Bf4 {[%clk
0:02:48.3]} 15... Nxe5 {[%clk 0:02:34.1]} 16. Bxe5 {[%clk 0:02:48.7]} 16... Bd6
{[%clk 0:02:35]} 17. Bxd6 {[%clk 0:02:49.1]} 17... Qxd6 {[%clk 0:02:35.9]} 18.
Rfd1 {[%clk 0:02:43.3]} 18... Qc7 {[%clk 0:02:34.7]} 19. Rab1 {[%clk 0:02:43.4]}
19... Rb8 {[%clk 0:02:33.5]} 20. Qe3 {[%clk 0:02:44]} 20... b6 {[%clk
0:02:30.1]} 21. c5 {[%clk 0:02:42.7]} 21... Bd7 {[%clk 0:01:42.5]} 22. cxb6
{[%clk 0:01:59.2]} 22... axb6 {[%clk 0:01:43.4]} 23. Qd4 {[%clk 0:01:59.4]}
23... Bc6 {[%clk 0:01:36.5]} 24. Qd6 {[%clk 0:01:55]} 24... Qxd6 {[%clk
0:01:22.4]} 25. Rxd6 {[%clk 0:01:55.9]} 25... Bxg2 {[%clk 0:01:23.1]} 26. Kxg2
{[%clk 0:01:55.8]} 26... Rfc8 {[%clk 0:01:24]} 27. Rb3 {[%clk 0:01:55.8]} 27...
b5 {[%clk 0:01:17.4]} 28. Ra6 {[%clk 0:01:42.1]} 28... g6 {[%clk 0:01:11.2]} 29.
Ra5 {[%clk 0:01:40.8]} 29... Kg7 {[%clk 0:01:06.6]} 30. Raa3 {[%clk 0:01:40.9]}
30... Rc4 {[%clk 0:01:03.8]} 31. Ra7 {[%clk 0:01:35.9]} 31... Rc5 {[%clk
0:00:44.1]} 32. a4 {[%clk 0:01:34.6]} 32... Rbc8 {[%clk 0:00:34.2]} 33. a5
{[%clk 0:01:07.8]} 33... Rxc3 {[%clk 0:00:30.6]} 34. Rxb5 {[%clk 0:01:07.9]}
34... R8c7 {[%clk 0:00:31.3]} 35. Ra8 {[%clk 0:01:00.8]} 35... Ra3 {[%clk
0:00:24.9]} 36. a6 {[%clk 0:00:35.3]} 36... Rc6 {[%clk 0:00:19.3]} 37. a7 {[%clk
0:00:34.5]} 37... Rc7 {[%clk 0:00:19.4]} 38. Rd8 {[%clk 0:00:29.8]} 38... Rcxa7
{[%clk 0:00:18.5]} 39. Rbb8 {[%clk 0:00:30.1]} 39... Ra2 {[%clk 0:00:18.4]} 40.
h4 {[%clk 0:00:29.2]} 40... h5 {[%clk 0:00:17.8]} 41. Rd3 {[%clk 0:00:26.9]}
41... Rc2 {[%clk 0:00:16.3]} 42. Rf3 {[%clk 0:00:27.1]} 42... Ra5 {[%clk
0:00:13.6]} 43. Rb7 {[%clk 0:00:27.2]} 43... Rf5 {[%clk 0:00:13.8]} 44. Rxf5
{[%clk 0:00:27.4]} 44... gxf5 {[%clk 0:00:14.7]} 45. Kf3 {[%clk 0:00:27]} 45...
Rc4 {[%clk 0:00:14.5]} 46. Rb8 {[%clk 0:00:26.9]} 46... Kg6 {[%clk 0:00:13.5]}
47. Rg8+ {[%clk 0:00:26.4]} 47... Kh6 {[%clk 0:00:11.5]} 48. Ke3 {[%clk
0:00:25.4]} 48... Re4+ {[%clk 0:00:09.3]} 49. Kd3 {[%clk 0:00:25.2]} 49... Rg4
{[%clk 0:00:10.2]} 50. Rh8+ {[%clk 0:00:19.5]} 50... Kg6 {[%clk 0:00:09.8]} 51.
f3 {[%clk 0:00:13.7]} 51... Ra4 {[%clk 0:00:08.3]} 52. Rg8+ {[%clk 0:00:13.5]}
52... Kh6 {[%clk 0:00:07.8]} 53. Ke3 {[%clk 0:00:13.6]} 53... Ra3+ {[%clk
0:00:05.6]} 54. Kf4 {[%clk 0:00:12.7]} 54... Ra4+ {[%clk 0:00:05.9]} 55. Ke5
{[%clk 0:00:13]} 55... Ra3 {[%clk 0:00:05.8]} 56. Kf6 {[%clk 0:00:13]} 56... Kh7
{[%clk 0:00:06.3]} 57. Rg7+ {[%clk 0:00:12.9]} 57... Kh8 {[%clk 0:00:05.8]} 58.
f4 {[%clk 0:00:12.5]} 58... Rb3 {[%clk 0:00:03.9]} 59. Rg5 {[%clk 0:00:11.6]}
59... Kh7 {[%clk 0:00:02.8]} 60. Rxh5+ {[%clk 0:00:07.3]} 60... Kg8 {[%clk
0:00:03.3]} 61. Rg5+ {[%clk 0:00:08]} 61... Kf8 {[%clk 0:00:02.6]} 62. Rg7
{[%clk 0:00:08.3]} 62... Ke8 {[%clk 0:00:01.4]} 63. h5 {[%clk 0:00:08.3]} 1-0

[Event "*** Titled Tuesday Blitz"]
[Site "Chess.com"]
[Date "2020.10.27"]
[Round "2"]
[White "PotapovaM"]
[Black "Bastiandash"]
[Result "0-1"]
[WhiteElo "2580"]
[BlackElo "2336"]
[TimeControl "180+1"]
[EndTime "10:19:19 PDT"]
[Termination "Bastiandash won by checkmate"]

1. d4 {[%clk 0:03:00.9]} 1... Nf6 {[%clk 0:02:56.4]} 2. c4 {[%clk 0:03:01.5]}
2... e6 {[%clk 0:02:56.5]} 3. Nf3 {[%clk 0:03:01.1]} 3... Bb4+ {[%clk
0:02:57.1]} 4. Nbd2 {[%clk 0:03:00.9]} 4... O-O {[%clk 0:02:52.4]} 5. a3 {[%clk
0:03:00.7]} 5... Be7 {[%clk 0:02:53]} 6. e4 {[%clk 0:03:00.7]} 6... d6 {[%clk
0:02:53.4]} 7. Bd3 {[%clk 0:02:57.8]} 7... e5 {[%clk 0:02:51.9]} 8. O-O {[%clk
0:02:53.7]} 8... exd4 {[%clk 0:02:42.3]} 9. Nxd4 {[%clk 0:02:53.6]} 9... Nc6
{[%clk 0:02:43.2]} 10. Nxc6 {[%clk 0:02:51.6]} 10... bxc6 {[%clk 0:02:42.8]} 11.
Nf3 {[%clk 0:02:52.3]} 11... Bg4 {[%clk 0:02:41.1]} 12. h3 {[%clk 0:02:52.2]}
12... Bxf3 {[%clk 0:02:38.6]} 13. Qxf3 {[%clk 0:02:53.1]} 13... Nd7 {[%clk
0:02:39.5]} 14. Qg3 {[%clk 0:02:46.6]} 14... Bh4 {[%clk 0:02:26.8]} 15. Qe3
{[%clk 0:02:34.7]} 15... Bf6 {[%clk 0:02:22.7]} 16. Rb1 {[%clk 0:02:29.3]} 16...
a5 {[%clk 0:02:17.2]} 17. f4 {[%clk 0:02:15.4]} 17... a4 {[%clk 0:01:53.3]} 18.
Kh1 {[%clk 0:02:14.2]} 18... c5 {[%clk 0:01:47.6]} 19. Bc2 {[%clk 0:01:55.4]}
19... Qe7 {[%clk 0:01:45.6]} 20. Bd2 {[%clk 0:01:54.5]} 20... Nb6 {[%clk
0:01:37.5]} 21. Qe2 {[%clk 0:01:34.8]} 21... Rfe8 {[%clk 0:01:26.6]} 22. Rfe1
{[%clk 0:01:32.1]} 22... Qe6 {[%clk 0:01:07.4]} 23. Bd3 {[%clk 0:01:29.6]} 23...
Bd4 {[%clk 0:01:07.3]} 24. Bc3 {[%clk 0:01:28.5]} 24... Nd7 {[%clk 0:00:53.7]}
25. Qh5 {[%clk 0:01:05.8]} 25... g6 {[%clk 0:00:34.9]} 26. Qf3 {[%clk
0:01:05.6]} 26... Rab8 {[%clk 0:00:30.4]} 27. Qd1 {[%clk 0:00:58.1]} 27... Ra8
{[%clk 0:00:28.4]} 28. Bf1 {[%clk 0:00:47.2]} 28... Qf6 {[%clk 0:00:22.9]} 29.
Qc2 {[%clk 0:00:46.7]} 29... Nb6 {[%clk 0:00:19.3]} 30. Qd2 {[%clk 0:00:41]}
30... Re7 {[%clk 0:00:15.9]} 31. Rbd1 {[%clk 0:00:38]} 31... Bxc3 {[%clk
0:00:13.6]} 32. bxc3 {[%clk 0:00:36.7]} 32... Rae8 {[%clk 0:00:13.5]} 33. Bd3
{[%clk 0:00:36.9]} 33... Qe6 {[%clk 0:00:13.8]} 34. Qc2 {[%clk 0:00:32.9]} 34...
Nxc4 {[%clk 0:00:11.8]} 35. Qxa4 {[%clk 0:00:31.9]} 35... Nb2 {[%clk 0:00:11.5]}
36. Qc6 {[%clk 0:00:25.1]} 36... Nxd1 {[%clk 0:00:11.4]} 37. Rxd1 {[%clk
0:00:26]} 37... Qb3 {[%clk 0:00:11.6]} 38. Rf1 {[%clk 0:00:18.5]} 38... Qxc3
{[%clk 0:00:10.2]} 39. Qb5 {[%clk 0:00:10]} 39... c4 {[%clk 0:00:06.7]} 40. Bxc4
{[%clk 0:00:08.2]} 40... Rxe4 {[%clk 0:00:07.2]} 41. Bd5 {[%clk 0:00:05.2]}
41... R4e7 {[%clk 0:00:06.9]} 42. Kh2 {[%clk 0:00:04.7]} 42... Qc5 {[%clk
0:00:07.3]} 43. Qd3 {[%clk 0:00:04.6]} 43... Re3 {[%clk 0:00:06.9]} 44. Qd2
{[%clk 0:00:04.2]} 44... Qc3 {[%clk 0:00:06.9]} 45. Qd1 {[%clk 0:00:03.1]} 45...
Rd3 {[%clk 0:00:07]} 46. Qb3 {[%clk 0:00:01.8]} 46... Qxb3 {[%clk 0:00:07.2]}
47. Bxb3 {[%clk 0:00:02.4]} 47... Rxb3 {[%clk 0:00:08.1]} 48. Rc1 {[%clk
0:00:03.1]} 48... c5 {[%clk 0:00:07.4]} 49. Rd1 {[%clk 0:00:03.5]} 49... Rxa3
{[%clk 0:00:05.4]} 50. Rxd6 {[%clk 0:00:03.1]} 50... Rc8 {[%clk 0:00:06]} 51.
Rd2 {[%clk 0:00:02.7]} 51... c4 {[%clk 0:00:06.3]} 52. Rc2 {[%clk 0:00:03.3]}
52... c3 {[%clk 0:00:07.2]} 53. f5 {[%clk 0:00:03.5]} 53... Rb3 {[%clk
0:00:07.8]} 54. f6 {[%clk 0:00:03.6]} 54... Rb2 {[%clk 0:00:03.8]} 55. Rc1
{[%clk 0:00:04]} 55... c2 {[%clk 0:00:04.2]} 56. Re1 {[%clk 0:00:04]} 56... h6
{[%clk 0:00:04.2]} 57. Re7 {[%clk 0:00:03.9]} 57... c1=Q {[%clk 0:00:04.1]} 58.
h4 {[%clk 0:00:04.3]} 58... Qf4+ {[%clk 0:00:04.6]} 59. Kh3 {[%clk 0:00:04.3]}
59... Rc3+ {[%clk 0:00:05.2]} 60. g3 {[%clk 0:00:04.5]} 60... Qxg3# {[%clk
0:00:05.8]} 0-1